bitfinex/quotes_BTCUSD_20230108
["timestamp","ask_amount","ask_price","bid_price","bid_amount"]
[1673163844181,2.0839169,16972.0,16971.0,0.83930643]
[1673163846486,2.0839169,16972.0,16971.0,0.84027025]
[1673163847011,2.0839169,16972.0,16971.0,0.83930643]
[1673163849888,1.48672307,16972.0,16971.0,0.83930643]
[1673163850155,2.0839169,16972.0,16971.0,0.83930643]
[1673163851446,1.48672307,16972.0,16971.0,0.83930643]
[1673163852708,2.0839169,16972.0,16971.0,0.83930643]
[1673163854851,1.4947119,16972.0,16971.0,0.83930643]
[1673163857337,0.89751807,16972.0,16971.0,0.83930643]
[1673163857586,1.4947119,16972.0,16971.0,0.83930643]
[1673163861216,1.4947119,16972.0,16971.0,0.82492641]
[1673163871856,2.0839169,16972.0,16971.0,0.82492641]
[1673163884007,2.0839169,16972.0,16971.0,0.82482129]
[1673163894407,1.48672307,16972.0,16971.0,0.82482129]
[1673163894877,2.0839169,16972.0,16971.0,0.82482129]
[1673163897180,0.59751807,16972.0,16971.0,0.82482129]
[1673163897411,1.12830708,16972.0,16971.0,0.82482129]
[1673163897641,0.89751807,16972.0,16971.0,0.82482129]
[1673163901710,0.89113807,16972.0,16971.0,0.82482129]
[1673163901955,0.889205,16972.0,16971.0,0.82482129]
[1673163903366,0.889205,16972.0,16971.0,0.12144217]
[1673163903367,2.07560383,16972.0,16971.0,0.12144217]
[1673163903865,2.08410383,16972.0,16971.0,0.12144217]
[1673163906379,1.48691,16972.0,16971.0,0.12144217]
[1673163906893,2.08398946,16972.0,16971.0,0.12144217]
[1673163907154,2.08393463,16972.0,16971.0,0.12144217]
[1673163908762,2.08393463,16972.0,16970.0,0.71273082]
[1673163909010,0.3085,16971.0,16970.0,0.71273082]
[1673163909259,0.89774,16971.0,16970.0,0.71273082]
[1673163910044,0.89774,16971.0,16970.0,0.72273082]
[1673163910298,0.89774,16971.0,16970.0,0.71273082]
[1673163910569,0.90774,16971.0,16970.0,0.72173082]
[1673163910811,0.90774,16971.0,16970.0,0.84886218]
[1673163911364,1.49698,16971.0,16970.0,0.84886218]
[1673163911606,1.49698,16971.0,16970.0,0.13613136]
[1673163912837,1.49698,16971.0,16970.0,0.009]
[1673163913835,1.49698,16971.0,16970.0,0.72173082]
[1673163915840,1.49698,16971.0,16970.0,0.84847803]
[1673163918235,1.49698,16971.0,16970.0,0.84841143]
[1673163918491,1.49698,16971.0,16970.0,0.13568061]
[1673163920549,1.49698,16971.0,16970.0,0.84841143]
[1673163935966,1.49691782,16971.0,16970.0,0.84841143]
[1673163938690,2.09394245,16971.0,16970.0,0.84841143]
[1673163951969,0.90767782,16971.0,16970.0,0.84841143]
[1673163952539,1.50470245,16971.0,16970.0,0.84841143]
[1673163954037,0.90767782,16971.0,16970.0,0.84841143]
[1673163958709,0.90767782,16971.0,16970.0,0.84833333]
[1673163960890,0.60774,16971.0,16970.0,0.84833333]
[1673163961407,0.90774,16971.0,16970.0,0.84833333]
[1673163964678,0.90774,16971.0,16970.0,0.72158612]
[1673163965726,0.90774,16971.0,16970.0,0.86254479]
[1673163969857,0.90774,16971.0,16970.0,0.72158612]
[1673163970370,0.3185,16971.0,16970.0,0.72158612]
[1673163971134,0.0185,16971.0,16970.0,0.72158612]
[1673163971381,0.54929295,16971.0,16970.0,0.72158612]
[1673163971899,0.54929128,16971.0,16970.0,0.72158612]
[1673163972157,0.0185,16971.0,16970.0,0.72158612]
[1673163972414,0.54929383,16971.0,16970.0,0.72158612]
[1673163973208,0.0185,16971.0,16970.0,0.72158612]
[1673163973722,0.54926967,16971.0,16970.0,0.72158612]
[1673163978142,0.84926967,16971.0,16970.0,0.72158612]
[1673163978415,0.54926967,16971.0,16970.0,0.72158612]
[1673163983010,0.54926967,16971.0,16970.0,0.721481]
[1673163990210,0.84926967,16971.0,16970.0,0.721481]
[1673163990449,0.84922844,16971.0,16970.0,0.721481]
[1673163991203,0.3185,16971.0,16970.0,0.721481]
[1673163991703,0.84925401,16971.0,16970.0,0.86234392]
[1673163992181,0.84925315,16971.0,16970.0,0.86234392]
[1673163992429,0.84925302,16971.0,16970.0,0.86234392]
[1673163992642,0.3185,16971.0,16970.0,0.86234392]
[1673163995679,0.3185,16971.0,16970.0,0.721481]
[1673163996726,0.3185,16971.0,16970.0,0.86420687]
[1673163999045,0.90774,16971.0,16970.0,0.86420687]
[1673163999840,1.50476463,16971.0,16970.0,0.86420687]
[1673164000334,0.90774,16971.0,16970.0,0.86420687]
[1673164000541,1.50476463,16971.0,16970.0,0.86420687]
[1673164000793,0.90774,16971.0,16970.0,0.86420687]
[1673164003111,1.50476463,16971.0,16970.0,0.15147605]
[1673164003363,0.90774,16971.0,16970.0,0.15147605]
[1673164003650,1.50476463,16971.0,16970.0,0.15147605]
[1673164003870,0.90774,16971.0,16970.0,0.15147605]
[1673164004127,1.50476463,16971.0,16970.0,0.86420687]
[1673164004398,0.90774,16971.0,16970.0,0.86420687]
[1673164006254,0.90774,16971.0,16970.0,0.86410513]
[1673164012157,0.90774,16971.0,16970.0,0.86506901]
[1673164012922,0.90774,16971.0,16970.0,0.86410513]
[1673164013444,0.90774,16971.0,16970.0,0.86506901]
[1673164014959,0.90774,16971.0,16970.0,0.86410513]
[1673164019074,1.49698,16971.0,16970.0,0.86410513]
[1673164022291,2.02768657,16971.0,16970.0,0.86410513]
[1673164023147,1.49698,16971.0,16970.0,0.86410513]
[1673164026581,1.49698,16971.0,16970.0,0.86400917]
[1673164031952,1.19698,16971.0,16970.0,1.05966934]
[1673164032203,1.72779725,16971.0,16970.0,1.05966934]
[1673164032926,1.72779725,16971.0,16970.0,0.86400917]
[1673164033290,1.19698,16971.0,16970.0,0.86400917]
[1673164033526,1.72782259,16971.0,16970.0,0.86400917]
[1673164035231,2.02782259,16971.0,16970.0,0.86400917]
[1673164037406,1.72782259,16971.0,16970.0,0.86400917]
[1673164037889,2.02782259,16971.0,16970.0,0.86400917]
[1673164042048,2.02773601,16971.0,16970.0,0.86400917]
[1673164042329,2.02773601,16971.0,16970.0,1.05966934]
[1673164043120,2.02773601,16971.0,16970.0,0.86400917]
[1673164043344,1.49689342,16971.0,16970.0,0.86400917]
[1673164063009,1.49689342,16971.0,16970.0,0.86394093]
[1673164071087,2.09391805,16971.0,16970.0,0.86394093]
[1673164071855,2.09391805,16971.0,16970.0,0.15121011]
[1673164073356,3.18709474,16971.0,16970.0,0.15121011]
[1673164073865,2.58007011,16971.0,16970.0,0.14272587]
[1673164074150,2.71707011,16971.0,16970.0,0.14672587]
[1673164074367,2.58007011,16971.0,16970.0,0.14272587]
[1673164074620,2.71707011,16971.0,16970.0,0.14672587]
[1673164075903,2.42245011,16971.0,16970.0,0.14672587]
[1673164077492,3.01924683,16971.0,16970.0,0.14672587]
[1673164080566,3.01921802,16971.0,16970.0,0.14672587]
[1673164081377,2.42245011,16971.0,16970.0,0.14672587]
[1673164084585,3.01915963,16971.0,16970.0,0.14672587]
[1673164084838,2.42245011,16971.0,16970.0,0.14672587]
[1673164085627,2.74100902,16971.0,16970.0,0.14672587]
[1673164086776,2.42245011,16971.0,16970.0,0.14672587]
[1673164087324,2.42245011,16971.0,16970.0,0.14661375]
[1673164089883,2.42245011,16971.0,16970.0,0.004]
[1673164090892,2.42245011,16971.0,16970.0,0.14362257]
[1673164095085,2.71707011,16971.0,16970.0,0.14362257]
[1673164095311,3.06509102,16971.0,16970.0,0.14362257]
[1673164100651,3.06502988,16971.0,16970.0,0.14362257]
[1673164101915,2.71700897,16971.0,16970.0,0.14362257]
[1673164104681,2.42238897,16971.0,16970.0,0.14362257]
[1673164104905,2.71701897,16971.0,16970.0,0.14362257]
[1673164110981,2.71700897,16971.0,16970.0,0.14362257]
[1673164112697,2.71700897,16971.0,16970.0,0.004]
[1673164117651,2.42238897,16971.0,16970.0,0.004]
[1673164118694,2.42238897,16971.0,16970.0,0.13327152]
[1673164121876,2.42238897,16971.0,16970.0,0.004]
[1673164124120,2.42238897,16971.0,16970.0,0.00389471]
[1673164124348,2.24848897,16971.0,16970.0,0.00389471]
[1673164125655,2.21307228,16971.0,16970.0,0.00389471]
[1673164126891,2.21307228,16971.0,16970.0,0.12795459]
[1673164127877,2.21307228,16971.0,16970.0,0.00389471]
[1673164128875,2.21307228,16971.0,16970.0,0.12796239]
[1673164141572,2.20902328,16971.0,16970.0,0.12796239]
[1673164145810,2.20902328,16971.0,16970.0,0.00389471]
[1673164151321,2.50365328,16971.0,16970.0,0.00389471]
[1673164152060,2.50365328,16971.0,16970.0,0.12805915]
[1673164157129,2.20902328,16971.0,16970.0,0.12805915]
[1673164157349,2.50364328,16971.0,16970.0,0.12805915]
[1673164157844,2.50364328,16971.0,16970.0,0.00389471]
[1673164160132,2.67754328,16971.0,16970.0,0.00389471]
[1673164161922,2.67754328,16971.0,16970.0,0.00382108]
[1673164162174,2.38292328,16971.0,16970.0,0.00382108]
[1673164162454,2.71296997,16971.0,16970.0,0.00382108]
[1673164164207,3.14766626,16971.0,16970.0,0.00382108]
[1673164164409,2.71296997,16971.0,16970.0,0.00382108]
[1673164169420,2.71295997,16971.0,16970.0,0.00382108]
[1673164170175,2.53905997,16971.0,16970.0,0.00382108]
[1673164171785,2.53906997,16971.0,16970.0,0.00382108]
[1673164177793,2.53906997,16971.0,16970.0,0.1280968]
[1673164181972,2.24443997,16971.0,16970.0,0.1280968]
[1673164183878,2.24443997,16971.0,16970.0,0.00382108]
[1673164184635,2.53905997,16971.0,16970.0,0.00382108]
[1673164185399,2.53905997,16971.0,16970.0,0.00372682]
[1673164187740,2.53905997,16971.0,16970.0,0.12804122]
[1673164188761,2.24443997,16971.0,16970.0,0.12804122]
[1673164189014,2.20902328,16971.0,16970.0,0.84077204]
[1673164189273,1.91686322,16971.0,16970.0,0.84077204]
[1673164189535,1.32762322,16971.0,16970.0,0.84077204]
[1673164190837,2.21686322,16971.0,16970.0,0.71645764]
[1673164192893,2.21686322,16971.0,16970.0,0.8407892]
[1673164193363,2.21686322,16971.0,16970.0,0.84175308]
[1673164193628,2.21686322,16971.0,16970.0,0.8407892]
[1673164193914,2.21686322,16971.0,16970.0,0.71645764]
[1673164196473,1.61978328,16971.0,16970.0,0.71645764]
[1673164198456,1.03054328,16971.0,16970.0,0.71645764]
[1673164198728,1.03054328,16971.0,16970.0,0.83486865]
[1673164199688,1.61978328,16971.0,16970.0,0.83486865]
[1673164200792,1.61978328,16971.0,16970.0,0.71645764]
[1673164202621,1.61978328,16971.0,16970.0,0.83710726]
[1673164202855,1.61978328,16971.0,16970.0,0.8407892]
[1673164203668,1.61978328,16971.0,16970.0,0.71645764]
[1673164204753,1.61978328,16971.0,16970.0,0.8407892]
[1673164205860,1.61978328,16971.0,16970.0,0.71645764]
[1673164206126,2.14974693,16971.0,16970.0,0.71645764]
[1673164206779,2.14974693,16971.0,16970.0,0.84078112]
[1673164206998,2.14974693,16971.0,16970.0,0.83897612]
[1673164208002,2.14974693,16971.0,16970.0,0.71465264]
[1673164209084,2.14974693,16971.0,16970.0,0.83897612]
[1673164209801,2.14974693,16971.0,16970.0,0.71465264]
[1673164210647,1.56050693,16971.0,16970.0,0.86119569]
[1673164210909,1.26050693,16971.0,16970.0,0.98551917]
[1673164211389,1.26050693,16971.0,16970.0,1.59294117]
[1673164211864,0.67126693,16971.0,16970.0,1.46861769]
[1673164212129,0.14130328,16971.0,16970.0,0.86119569]
[1673164212650,0.14130328,16971.0,16970.0,1.20899569]
[1673164212901,0.14130328,16971.0,16970.0,1.94074117]
[1673164213814,0.14130328,16971.0,16970.0,1.81641769]
[1673164214981,0.14130328,16971.0,16970.0,1.66987464]
[1673164215205,0.58286788,16971.0,16970.0,1.66987464]
[1673164215959,0.58286788,16971.0,16970.0,2.3834809]
[1673164216198,0.93603972,16971.0,16970.0,2.3834809]
[1673164216444,0.58286788,16971.0,16970.0,2.3834809]
[1673164219657,0.58286788,16971.0,16970.0,2.79751618]
[1673164220199,0.93603428,16971.0,16970.0,2.79751618]
[1673164220462,0.93603428,16971.0,16970.0,3.28515263]
[1673164220717,0.58277484,16971.0,16970.0,3.87442763]
[1673164220979,0.31358128,16971.0,16970.0,4.04832763]
[1673164222049,0.57847156,16971.0,16970.0,4.04832763]
[1673164222304,0.31358128,16971.0,16970.0,4.04832763]
[1673164222814,0.32208128,16971.0,16970.0,4.04832763]
[1673164224419,0.58697156,16971.0,16970.0,4.04832763]
[1673164224628,0.32208128,16971.0,16970.0,4.04832763]
[1673164225153,0.32208128,16971.0,16970.0,4.04929151]
[1673164226919,0.1455,16971.0,16970.0,4.04929151]
[1673164227166,0.32208128,16971.0,16970.0,4.04929151]
[1673164227847,0.1455,16971.0,16970.0,4.04929151]
[1673164228330,0.32208128,16971.0,16970.0,4.04929151]
[1673164229260,0.32208128,16971.0,16970.0,4.0492018]
[1673164229809,0.1455,16971.0,16970.0,4.0492018]
[1673164230046,0.32208128,16971.0,16970.0,4.0492018]
[1673164230282,0.1455,16971.0,16970.0,4.0492018]
[1673164233648,0.1405,16971.0,16970.0,4.0492018]
[1673164236266,0.31708128,16971.0,16970.0,4.0492018]
[1673164237533,0.1405,16971.0,16970.0,4.0492018]
[1673164238442,0.31708128,16971.0,16970.0,4.0492018]
[1673164238726,0.1405,16971.0,16970.0,4.0492018]
[1673164240273,0.1405,16971.0,16970.0,3.8753018]
[1673164242889,0.31708128,16971.0,16970.0,3.8753018]
[1673164245027,0.58197156,16971.0,16970.0,3.8753018]
[1673164245731,0.31708128,16971.0,16970.0,3.8753018]
[1673164247991,0.58197156,16971.0,16970.0,3.8753018]
[1673164248237,0.58197156,16971.0,16970.0,3.46126652]
[1673164248238,0.93513796,16971.0,16970.0,3.46126652]
[1673164248478,0.75855668,16971.0,16970.0,2.85384452]
[1673164248717,0.58202729,16971.0,16970.0,2.85384452]
[1673164249978,0.93519369,16971.0,16970.0,2.85384452]
[1673164250233,0.75855668,16971.0,16970.0,2.85384452]
[1673164250469,0.75855668,16971.0,16970.0,3.19815687]
[1673164251502,0.935231,16971.0,16970.0,3.19719299]
[1673164251977,0.5820646,16971.0,16970.0,3.19719299]
[1673164252501,0.5820646,16971.0,16970.0,2.26360564]
[1673164253262,0.58237375,16971.0,16970.0,2.26360564]
[1673164253482,0.1405,16971.0,16970.0,2.26360564]
[1673164254241,0.5824441,16971.0,16970.0,2.26360564]
[1673164254706,0.58244477,16971.0,16970.0,2.26360564]
[1673164254965,0.1405,16971.0,16970.0,2.26456952]
[1673164255233,0.58244104,16971.0,16970.0,2.26450379]
[1673164256251,0.1405,16971.0,16970.0,2.26450379]
[1673164256759,0.1405,16971.0,16970.0,2.60881057]
[1673164257274,0.58246404,16971.0,16970.0,2.60881057]
[1673164257586,0.1405,16971.0,16970.0,2.60881057]
[1673164257809,0.1405,16971.0,16970.0,2.26353991]
[1673164259588,0.5824831,16971.0,16970.0,2.26353991]
[1673164260781,0.5824831,16971.0,16970.0,1.91573991]
[1673164263365,0.93608123,16971.0,16970.0,2.50501491]
[1673164275960,0.93608123,16971.0,16970.0,2.50492713]
[1673164276775,0.93608123,16971.0,16970.0,2.81434794]
[1673164283854,0.93608123,16971.0,16970.0,3.42176994]
[1673164292846,0.5824831,16971.0,16970.0,3.42176994]
[1673164294279,0.5824831,16971.0,16970.0,2.81434794]
[1673164294556,0.5824831,16971.0,16970.0,2.50492713]
[1673164296000,0.5824831,16971.0,16970.0,1.91565213]
[1673164296275,0.5824831,16971.0,16970.0,2.52307413]
[1673164297461,0.93627299,16971.0,16970.0,2.52307413]
[1673164297984,0.5824831,16971.0,16970.0,1.91565213]
[1673164298204,0.5824831,16971.0,16970.0,2.89316537]
[1673164300264,0.5824831,16971.0,16970.0,2.28574337]
[1673164300486,0.1405,16971.0,16970.0,1.91557846]
[1673164300750,0.58287896,16971.0,16970.0,1.91557846]
[1673164301509,0.1405,16971.0,16970.0,1.91557846]
[1673164302017,0.58287508,16971.0,16970.0,1.91557846]
[1673164304701,0.5828773,16971.0,16970.0,1.91557846]
[1673164304950,0.5828773,16971.0,16970.0,1.7912472]
[1673164306246,0.58287686,16971.0,16970.0,1.7912472]
[1673164306506,0.58287465,16971.0,16970.0,2.08822942]
[1673164306760,0.58287465,16971.0,16970.0,2.19424641]
[1673164307013,0.58287465,16971.0,16970.0,2.80166841]
[1673164307745,0.58287465,16971.0,16970.0,2.3986692]
[1673164308754,0.58287465,16971.0,16970.0,2.49963777]
[1673164310049,0.93675557,16971.0,16970.0,2.49963777]
[1673164314226,0.93675557,16971.0,16970.0,3.08891277]
[1673164314480,0.75976136,16971.0,16970.0,3.08891277]
[1673164314784,0.93675557,16971.0,16970.0,2.48149077]
[1673164318540,0.93675557,16971.0,16970.0,3.08891277]
[1673164319036,0.93675557,16971.0,16970.0,3.45662312]
[1673164319549,0.93675557,16971.0,16970.0,2.84920112]
[1673164321300,0.93675557,16971.0,16970.0,3.45662312]
[1673164325558,0.93675557,16971.0,16970.0,3.08880394]
[1673164327170,0.75973179,16971.0,16970.0,3.08880394]
[1673164330705,0.75973179,16971.0,16970.0,2.48138194]
[1673164334426,0.93660356,16971.0,16970.0,2.48138194]
[1673164334700,0.75973179,16971.0,16970.0,2.48138194]
[1673164336314,0.93659644,16971.0,16970.0,2.48138194]
[1673164338137,0.75973179,16971.0,16970.0,2.48138194]
[1673164338411,0.93658869,16971.0,16970.0,2.48138194]
[1673164338944,0.75973179,16971.0,16970.0,2.48138194]
[1673164339830,0.75973179,16971.0,16970.0,2.80567425]
[1673164341852,0.75973179,16971.0,16970.0,2.48126816]
[1673164345071,0.93675557,16971.0,16970.0,2.48126816]
[1673164349865,0.93665867,16971.0,16970.0,2.48126816]
[1673164353796,0.93665867,16971.0,16970.0,2.38029959]
[1673164354701,0.93665867,16971.0,16970.0,2.48029877]
[1673164356423,0.93665867,16971.0,16970.0,2.80459655]
[1673164358923,0.93665867,16971.0,16970.0,2.70459737]
[1673164360400,0.93665867,16971.0,16970.0,2.38029959]
[1673164360888,0.93665867,16971.0,16970.0,2.48029877]
[1673164362905,0.93665867,16971.0,16970.0,2.38029959]
[1673164364746,0.93665867,16971.0,16970.0,2.48029877]
[1673164370966,0.93665867,16971.0,16970.0,2.48021163]
[1673164371479,0.93665867,16971.0,16970.0,2.80450069]
[1673164372846,0.93665867,16971.0,16970.0,2.70450151]
[1673164373108,0.93665867,16971.0,16970.0,2.38021245]
[1673164373869,0.93665867,16971.0,16970.0,2.48020808]
[1673164375606,0.58277775,16971.0,16970.0,2.48020808]
[1673164376912,0.58277775,16971.0,16970.0,2.38021245]
[1673164377476,0.93663503,16971.0,16970.0,2.38021245]
[1673164378842,0.93663503,16971.0,16970.0,2.48020808]
[1673164380891,0.93646063,16971.0,16970.0,2.80449679]
[1673164383757,0.93646063,16971.0,16970.0,2.70450116]
[1673164384023,0.93646063,16971.0,16970.0,2.38021245]
[1673164385761,0.93646063,16971.0,16970.0,2.48020808]
[1673164389987,0.93646063,16971.0,16970.0,2.38021245]
[1673164394778,0.93646063,16971.0,16970.0,2.48020808]
[1673164395738,0.93646063,16971.0,16970.0,2.80449679]
[1673164399003,0.93646063,16971.0,16970.0,2.21522179]
[1673164399806,0.93646063,16971.0,16970.0,1.89093308]
[1673164400772,0.58260335,16971.0,16970.0,1.89093308]
[1673164402190,0.93635424,16971.0,16970.0,1.89093308]
[1673164403814,0.58260335,16971.0,16970.0,1.89093308]
[1673164405694,0.58260335,16971.0,16970.0,1.89087188]
[1673164406485,0.58260335,16971.0,16970.0,2.21515637]
[1673164408755,0.58260335,16971.0,16970.0,1.89087188]
[1673164417865,0.58260335,16971.0,16970.0,2.49829388]
[1673164419873,0.58260335,16971.0,16970.0,2.01065743]
[1673164420136,0.1402287,16971.0,16970.0,1.40323543]
[1673164426068,0.1402287,16971.0,16970.0,1.40315856]
[1673164427789,0.1402287,16971.0,16970.0,0.81388356]
[1673164429559,0.1402287,16971.0,16970.0,0.81352966]
[1673164429805,0.1402287,16971.0,16970.0,1.01971527]
[1673164436910,0.1402287,16971.0,16970.0,0.81352966]
[1673164441268,0.58239678,16971.0,16970.0,0.81352966]
[1673164443349,0.1402287,16971.0,16970.0,0.81352966]
[1673164444106,0.58240838,16971.0,16970.0,0.81352966]
[1673164444379,0.1402287,16971.0,16970.0,0.81352966]
[1673164449396,0.1402287,16971.0,16970.0,1.42095166]
[1673164449666,0.58243541,16971.0,16970.0,1.42095166]
[1673164449929,0.58243541,16971.0,16970.0,1.42088598]
[1673164450448,0.1402287,16971.0,16970.0,0.81346398]
[1673164452506,0.1402287,16971.0,16970.0,1.40273898]
[1673164454298,0.1402287,16971.0,16970.0,2.01016098]
[1673164454809,0.1402287,16971.0,16970.0,1.40273898]
[1673164458996,0.1402287,16971.0,16970.0,2.01016098]
[1673164459521,0.1402287,16971.0,16970.0,1.40273898]
[1673164464159,0.1402287,16971.0,16970.0,1.66781083]
[1673164464444,0.1402287,16971.0,16970.0,2.27523283]
[1673164466166,0.1402287,16971.0,16970.0,1.66781083]
[1673164466424,0.1402287,16971.0,16970.0,1.40273898]
[1673164466683,0.1402287,16971.0,16970.0,0.81346398]
[1673164473072,0.1402287,16971.0,16970.0,0.81338396]
[1673164479088,0.93649621,16971.0,16970.0,1.40265896]
[1673164479347,0.93649621,16971.0,16970.0,1.66772301]
[1673164479609,0.93648586,16971.0,16970.0,1.66772301]
[1673164480046,0.93648586,16971.0,16970.0,2.27514501]
[1673164480795,0.93648586,16971.0,16970.0,1.66772301]
[1673164481139,0.93648586,16971.0,16970.0,1.40265896]
[1673164481356,0.58259954,16971.0,16970.0,1.40265896]
[1673164492852,0.58259954,16971.0,16970.0,1.30266333]
[1673164493940,0.58259954,16971.0,16970.0,1.40265677]
[1673164495272,0.58259954,16971.0,16970.0,1.40253832]
[1673164496835,0.58259954,16971.0,16970.0,1.66759031]
[1673164498110,0.58259954,16971.0,16970.0,2.27501231]
[1673164498878,0.58259954,16971.0,16970.0,2.27490371]
[1673164499133,0.58249058,16971.0,16970.0,2.27490371]
[1673164499653,0.58249058,16971.0,16970.0,1.66748171]
[1673164500175,0.93628979,16971.0,16970.0,1.66748171]
[1673164500672,0.93628979,16971.0,16970.0,1.40242972]
[1673164502918,0.92778979,16971.0,16970.0,1.40242972]
[1673164512160,0.57399058,16971.0,16970.0,1.40242972]
[1673164512659,0.57399058,16971.0,16970.0,0.81315472]
[1673164512883,0.13161974,16971.0,16970.0,0.81315472]
[1673164514124,0.14011974,16971.0,16970.0,0.81315472]
[1673164514618,0.58236261,16971.0,16970.0,0.81315472]
[1673164514871,0.14011974,16971.0,16970.0,0.81315472]
[1673164515124,0.13161974,16971.0,16970.0,0.81315472]
[1673164515404,0.57385637,16971.0,16970.0,0.81315472]
[1673164515758,0.13161974,16971.0,16970.0,0.81315472]
[1673164516019,0.57385614,16971.0,16970.0,0.81315472]
[1673164520980,0.57385614,16971.0,16970.0,0.71316128]
[1673164521206,0.57385614,16971.0,16970.0,0.71305007]
[1673164521974,0.57385614,16971.0,16970.0,0.81804318]
[1673164523651,0.13161974,16971.0,16970.0,0.81804318]
[1673164523888,0.13161974,16971.0,16970.0,0.71305007]
[1673164524889,0.13161974,16971.0,16970.0,0.81304098]
[1673164525137,0.57386556,16971.0,16970.0,0.81304098]
[1673164537678,0.13161974,16971.0,16970.0,0.81304098]
[1673164537934,0.57383538,16971.0,16970.0,0.81304098]
[1673164539365,0.13161974,16971.0,16970.0,0.81304098]
[1673164541532,0.13161974,16971.0,16970.0,0.81295885]
[1673164543674,0.43161974,16971.0,16970.0,0.81295885]
[1673164544638,1.55082339,16971.0,16970.0,0.10022803]
[1673164544902,2.14856339,16971.0,16970.0,0.10022803]
[1673164545162,1.65401643,16971.0,16970.0,0.10022803]
[1673164545671,2.25109637,16971.0,16970.0,0.10022803]
[1673164546006,1.65401643,16971.0,16970.0,0.10022803]
[1673164546947,2.18439032,16971.0,16970.0,0.10022803]
[1673164549472,1.65401643,16971.0,16970.0,0.10022803]
[1673164549734,2.18419684,16971.0,16970.0,0.10022803]
[1673164555704,2.18401859,16971.0,16970.0,0.18152392]
[1673164558390,1.65383818,16971.0,16970.0,0.18152392]
[1673164559688,2.18401859,16971.0,16970.0,0.10022803]
[1673164560351,2.35791859,16971.0,16970.0,0.10022803]
[1673164571447,2.34941859,16971.0,16970.0,0.10022803]
[1673164575530,2.17551859,16971.0,16970.0,0.10022803]
[1673164576029,1.64533818,16971.0,16970.0,0.10022803]
[1673164576318,1.64526969,16971.0,16970.0,0.10022803]
[1673164577034,1.64526969,16971.0,16970.0,0.18152392]
[1673164577551,1.65376969,16971.0,16970.0,0.10022803]
[1673164578770,2.17577387,16971.0,16970.0,0.10022803]
[1673164583718,1.64526969,16971.0,16970.0,0.10022803]
[1673164592876,2.24234963,16971.0,16970.0,0.10022803]
[1673164593628,1.64526969,16971.0,16970.0,0.10022803]
[1673164594383,2.24234963,16971.0,16970.0,0.10022803]
[1673164594631,1.64526969,16971.0,16970.0,0.10022803]
[1673164595387,2.24234963,16971.0,16970.0,0.10022803]
[1673164595601,1.64526969,16971.0,16970.0,0.10022803]
[1673164595910,2.24234963,16971.0,16970.0,0.10022803]
[1673164596161,1.64526969,16971.0,16970.0,0.10022803]
[1673164597223,2.24234963,16971.0,16970.0,0.10016166]
[1673164598264,1.64526969,16971.0,16970.0,0.10016166]
[1673164598474,2.24234963,16971.0,16970.0,0.10016166]
[1673164598727,1.64526969,16971.0,16970.0,0.10016166]
[1673164598984,2.24234963,16971.0,16970.0,0.10016166]
[1673164599997,1.64526969,16971.0,16970.0,0.10016166]
[1673164604227,2.25084963,16971.0,16970.0,0.10016166]
[1673164607933,2.84008963,16971.0,16970.0,0.10016166]
[1673164612963,2.83158963,16971.0,16970.0,0.10016166]
[1673164617159,2.79617294,16971.0,16970.0,0.10016166]
[1673164618252,2.79617294,16971.0,16970.0,0.10008668]
[1673164623335,2.83158963,16971.0,16970.0,0.10008668]
[1673164628418,2.83158963,16971.0,16970.0,0.8128175]
[1673164628677,2.23450969,16971.0,16970.0,0.8128175]
[1673164630003,2.23450969,16971.0,16970.0,0.71282659]
[1673164630949,2.23450969,16971.0,16970.0,0.80487324]
[1673164631975,1.64526969,16971.0,16970.0,0.71282659]
[1673164632483,1.64526969,16971.0,16970.0,9.577e-05]
[1673164632697,2.24234963,16971.0,16970.0,9.577e-05]
[1673164632949,2.24234963,16971.0,16970.0,0.09214242]
[1673164633453,1.64526969,16971.0,16970.0,0.09214242]
[1673164633964,1.64526969,16971.0,16970.0,1.96702976]
[1673164633965,0.131373,16971.0,16970.0,1.96702976]
[1673164634225,0.66205676,16971.0,16970.0,3.51532387]
[1673164634475,0.57317072,16971.0,16970.0,3.51532387]
[1673164634975,0.57317149,16971.0,16970.0,3.60298735]
[1673164635223,0.92660967,16971.0,16970.0,3.60298735]
[1673164635472,0.92660954,16971.0,16970.0,3.60298735]
[1673164635979,0.92660931,16971.0,16970.0,3.60298735]
[1673164636230,0.57317113,16971.0,16970.0,3.60298735]
[1673164637004,0.3080925,16971.0,16970.0,3.60298735]
[1673164637501,0.57317113,16971.0,16970.0,3.60298735]
[1673164638018,0.57317113,16971.0,16970.0,3.01371235]
[1673164638275,0.57317113,16971.0,16970.0,3.0136222]
[1673164638770,0.57317113,16971.0,16970.0,2.8765422]
[1673164639276,0.92660931,16971.0,16970.0,2.2691202]
[1673164639533,0.57317113,16971.0,16970.0,2.2691202]
[1673164639775,0.92660931,16971.0,16970.0,2.2691202]
[1673164640275,0.57317113,16971.0,16970.0,2.2691202]
[1673164641033,0.57317113,16971.0,16970.0,2.8765422]
[1673164642748,0.3080925,16971.0,16970.0,2.8765422]
[1673164643005,0.57317113,16971.0,16970.0,2.8765422]
[1673164643261,0.57317113,16971.0,16970.0,2.12775268]
[1673164646493,0.30799734,16971.0,16970.0,2.12775268]
[1673164646741,0.57307597,16971.0,16970.0,2.12775268]
[1673164647510,0.30799734,16971.0,16970.0,2.12775268]
[1673164648993,0.30799734,16971.0,16970.0,2.45828752]
[1673164649238,0.30799734,16971.0,16970.0,3.06570952]
[1673164652204,0.13127784,16971.0,16970.0,3.06570952]
[1673164652461,0.30799734,16971.0,16970.0,3.06570952]
[1673164653547,0.30799734,16971.0,16970.0,2.45828752]
[1673164654567,0.30799734,16971.0,16970.0,2.12765545]
[1673164654790,0.57307597,16971.0,16970.0,2.12765545]
[1673164661255,0.57307597,16971.0,16970.0,1.53838045]
[1673164666365,0.92651415,16971.0,16970.0,1.53838045]
[1673164666607,0.74979465,16971.0,16970.0,1.53838045]
[1673164667109,0.74979465,16971.0,16970.0,1.63285536]
[1673164668384,1.19159237,16971.0,16970.0,1.63285536]
[1673164668639,0.74979465,16971.0,16970.0,1.63285536]
[1673164668861,1.19159237,16971.0,16970.0,1.53838045]
[1673164669118,0.92651374,16971.0,16970.0,1.53838045]
[1673164671385,1.22651374,16971.0,16970.0,1.53838045]
[1673164672426,0.87307556,16971.0,16970.0,1.53829621]
[1673164672686,0.87307556,16971.0,16970.0,1.80998263]
[1673164673189,0.87307556,16971.0,16970.0,2.41740463]
[1673164674213,0.87307556,16971.0,16970.0,1.80998263]
[1673164675429,0.87307556,16971.0,16970.0,1.53829621]
[1673164680955,0.87307556,16971.0,16970.0,1.53847206]
[1673164681210,1.02051784,16971.0,16970.0,1.53847206]
[1673164684100,1.46286367,16971.0,16970.0,1.53847206]
[1673164692546,1.46286367,16971.0,16970.0,1.53835529]
[1673164693922,1.46286367,16971.0,16970.0,1.69219082]
[1673164695649,0.57362367,16971.0,16970.0,1.69219082]
[1673164695877,0.57362367,16971.0,16970.0,1.51879082]
[1673164696147,0.87362367,16971.0,16970.0,1.51879082]